Cogmind - Beta 15 @@@ ROGUE MODE // 2025.05.30 @ 15:42:01 Player: Windjigo Result: Destroyed by H-77 Assassin with Coil Gun Performance ------------- Evolutions (6) 3000 Regions Visited (15) 3000 Robots Destroyed (119) 595 Value Destroyed (4887) 4887 Prototype IDs (24) 480 Alien Tech Used (0) 0 Bonus (4684) 4684 TOTAL SCORE: 16646 Bonus ------- High Alert Combat Kills 275 Follower Combat Kills 2064 Entered Garrisons 200 Entered DSFs 500 Network Hubs Disabled 200 Met Imprinter 300 Was Imprinted 300 Built Enhanced Grunts 300 A7 Reached Mainframe 300 Met R17 at Cetus 500 Friendly Fire -255 Cogmind --------- Core Integrity 0/1150 Matter 300/300 Energy 50/100 System Corruption 8% Temperature Cool (0) Movement Walking (190) Ox1 Location -4/Armory Parts ------- > --- POWER (2) -------- (None) > --- PROPULSION (4) --- Myomer Leg Q-thruster Q-thruster Q-thruster > --- UTILITY (9) ------ Improved Target Analyzer Advanced Force Booster Improved Light Armor Plating Improved Light Armor Plating > --- WEAPON (4) ------- Improved Remote Datajack Nanosword Nanosword Nanosword > --- INVENTORY (5) ---- Q-thruster Advanced Phase Shifter Matter Neutralizer Hypervelocity Mass Driver RU-N14's Throwing Claymores (4) Peak State ------------ > --- POWER ------------ Antimatter Reactor Zionite Light DM Reactor > --- PROPULSION ------- Enhanced Flexi-carbon Leg Enhanced Flexi-carbon Leg Myomer Leg Myomer Leg > --- UTILITY ---------- Experimental Heat Sink High-capacity Storage Unit Advanced Signal Interpreter Advanced Targeting Computer Zionite Light Carapace Centrium Medium Armor Plating Experimental Thermal Shield > --- WEAPON ----------- Nanosword Nanosword Nanosword Nanosword > --- INVENTORY -------- Myomer Leg Advanced Heat Sink Advanced Coolant Injector Experimental Sensor Array Advanced Targeting Computer Improved Particle Charger Improved Kinecellerator Zionite Weapon Casing Z-Drone Bay Hacking Drone Bay Advanced Plasma Cannon Advanced Plasma Cannon KE Penetrator KE Penetrator Mini Assault Cannon RU-N14's Throwing Claymores RU-N14's Throwing Claymores [Rating: 129] Favorites ----------- Power Improved Ion Engine Engine Improved Ion Engine Power Core Neutrino Core Reactor Light Antimatter Reactor Propulsion Enhanced Flexi-carbon Leg Leg Enhanced Flexi-carbon Leg Wheel Wheel Flight Unit Q-thruster Utility High-capacity Storage Unit Device Experimental Sensor Array Storage High-capacity Storage Unit Processor Advanced Signal Interpreter Protection Improved Light Armor Plating Weapon Nanosword Energy Gun Storm Laser Energy Cannon Plasma Cannon Ballistic Gun KE Penetrator Ballistic Cannon Mini Assault Cannon Special Weapon Improved Remote Datajack Impact Weapon Makeshift Hammer Slashing Weapon Nanosword Build | -11 -10 -9 -9 -7 -6 -6 -6 -6 -6 -6 -5 -5 -5 -4 -4 ------- Run | Yrd Mat Mat Min Zio Pro Fac Ext Cet Arc Hub Fac DSF Gar Fac Arm Slots Evolved 12 | . . 2 . . . 6 . . . . 2 . . 2 . Power 1 | . . . . . . 1 . . . . . . . . . Propulsion 2 | . . . . . . 1 . . . . 1 . . . . Utility 7 | . . 2 . . . 2 . . . . 1 . . 2 . Weapon 2 | . . . . . . 2 . . . . . . . . . Parts Attached 150 | 9 10 7 4 6 . 14 16 13 4 11 1 8 15 20 12 Power 21 | 2 1 1 . . . 3 1 2 1 3 . 1 2 4 . Engine 10 | 2 1 1 . . . 1 1 1 . . . . 2 1 . Core 4 | . . . . . . 1 . . 1 2 . . . . . Reactor 7 | . . . . . . 1 . 1 . 1 . 1 . 3 . Propulsion 47 | 3 6 . 2 1 . 1 4 7 . 2 . 3 6 7 5 Treads . | . . . . . . . . . . . . . . . . Leg 27 | . . . . . . . 4 5 . 2 . 3 6 6 1 Wheel 16 | 3 6 . 2 1 . 1 . 2 . . . . . 1 . Hover . | . . . . . . . . . . . . . . . . Flight 4 | . . . . . . . . . . . . . . . 4 Utility 52 | 2 1 4 1 2 . 7 6 4 1 3 . 2 4 9 6 Device 26 | 1 . 1 1 1 . 4 2 2 . 1 . 1 3 6 3 Storage 2 | 1 1 . . . . . . . . . . . . . . Processor 8 | . . 1 . . . 2 1 . 1 2 . . . 1 . Hackware . | . . . . . . . . . . . . . . . . Protection 16 | . . 2 . 1 . 1 3 2 . . . 1 1 2 3 Artifact . | . . . . . . . . . . . . . . . . Weapon 30 | 2 2 2 1 3 . 3 5 . 2 3 1 2 3 . 1 Energy Gun 5 | 1 1 1 . . . 1 . . . 1 . . . . . Energy Cannon 4 | . . . . 1 . 1 . . . 1 . 1 . . . Ballistic Gun 8 | 1 1 1 1 1 . . . . 2 1 . . . . . Ballistic Cannon 1 | . . . . . . . . . . . 1 . . . . Launcher . | . . . . . . . . . . . . . . . . Special Weapon 2 | . . . . 1 . . . . . . . . . . 1 Impact Weapon 1 | . . . . . . 1 . . . . . . . . . Slashing Weapon 9 | . . . . . . . 5 . . . . 1 3 . . Piercing Weapon . | . . . . . . . . . . . . . . . . Special Melee Weapon . | . . . . . . . . . . . . . . . . Unidentified Prototypes 24 | . . . 1 2 . 5 2 4 . 3 1 1 3 2 . Corrupted Parts 1 | . . . . . . . . . . 1 . . . . . System Corruption 10 | . . . . . . . . . . 10 . . . . . Parts Lost 47 | . 1 1 . . . 1 3 4 3 . . 1 13 18 2 Power 7 | . . . . . . . 1 . 1 . . . 3 2 . Propulsion 17 | . . . . . . 1 1 2 . . . . 6 7 . Utility 16 | . . . . . . . 1 . 1 . . . 4 8 2 Weapon 7 | . 1 1 . . . . . 2 1 . . 1 . 1 . Highest Loss Streak 17 | . 1 1 . . . 1 1 2 3 . . 1 7 17 1 To Critical Strikes 2 | . . . . . . . . 2 . . . . . . . Average Backups 17 | 3 17 19 19 18 17 19 18 16 16 16 15 17 17 18 4 Power 1 | 1 4 5 5 3 1 . 1 1 . 1 1 . . 1 . Propulsion 2 | 1 6 5 5 2 2 1 . 2 3 2 1 1 1 1 . Utility 7 | . 3 5 6 6 6 9 9 8 7 7 9 10 8 9 1 Weapon 5 | 1 2 3 3 5 7 7 5 3 3 3 4 4 7 6 3 Tool/Special . | . . . . . . . . . . . . . . . . Unused Backups 56 | . 8 1 . 12 1 7 5 1 1 2 . 1 . 13 4 Power 7 | . 3 . . 2 1 . . . . . . . . 1 . Propulsion 9 | . 3 1 . 1 . 2 . 1 1 . . . . . . Utility 20 | . 1 . . 3 . 4 3 . . . . 1 . 7 1 Weapon 17 | . 1 . . 6 . 1 2 . . . . . . 4 3 Tool/Special 3 | . . . . . . . . . . 2 . . . 1 . Average Slot Usage (%) 88 | . 100 99 99 100 100 72 76 86 85 93 98 99 87 95 55 Engine 6 | . 14 11 11 11 11 6 7 6 2 . . . 2 2 . Core 1 | . . . . . . 4 . . 3 6 5 3 . . . Reactor 2 | . . . . . . 1 2 . . . 5 6 5 7 . Leg 8 | . . . . . . . 5 5 20 20 23 23 20 20 4 Wheel 10 | . 28 22 22 22 22 13 5 9 . . . . . . . Device 13 | . 14 16 11 11 11 12 13 13 13 13 16 17 7 19 8 Storage 7 | . 14 11 11 11 11 6 6 6 6 6 5 5 5 4 . Processor 10 | . . 5 11 11 11 11 13 13 13 13 11 11 11 9 5 Protection 7 | . . 11 11 11 11 6 5 5 6 6 5 5 7 8 13 Energy Gun 2 | . 14 13 . . . 5 3 . . . . . . . . Energy Cannon 2 | . . . . 7 11 . . . . 3 5 4 . . . Ballistic Gun 5 | . 14 8 21 14 10 . . . 4 17 15 10 . . . Slashing Weapon 7 | . . . . . . . 6 18 7 2 . . 21 20 15 Peak Build Rating 129 | 7 9 13 22 37 38 80 85 83 91 101 115 120 129 127 95 Average Rating 67 | 4 8 12 17 31 37 70 74 73 84 94 114 116 106 114 72 On Entrance 56 | . 7 9 12 22 37 37 76 78 80 86 101 115 118 88 35 Naked Turns . | . . . . . . . . . . . . . . . . Heaviest Build 104 | 14 50 55 57 64 64 93 93 82 85 97 98 103 104 91 30 Greatest Support 112 | 26 26 26 26 26 26 44 74 84 84 84 112 112 106 102 32 Greatest Overweight (x) 6 | 1 2 2 2 3 2 2 3 6 1 1 . . 2 2 3 Average Overweight (x) 1 | . 1 1 2 2 2 1 2 1 . . . . . . . Largest Inventory Capacity 20 | 8 20 20 20 20 20 20 20 20 20 20 20 20 20 20 5 Average Capacity 19 | 6 19 20 20 20 20 20 20 20 20 20 20 20 20 19 5 Most Carried 20 | 8 20 20 20 20 20 20 20 20 20 20 20 20 20 20 5 Average Carried 18 | 3 17 19 19 19 20 19 19 19 19 19 18 19 17 18 4 Final Capacity 20 | 8 20 20 20 20 20 20 20 20 20 20 20 20 20 5 5 Final Carried 20 | 8 19 20 20 20 20 20 20 20 20 20 20 20 20 5 5 Class Distribution -------------------- 32% | Mutant 18% | Gunner 17% | Scavenger-Mutant 9% | Derelict-Gladiator 6% | Scavenger-Gladiator 5% | Scavenger-Gunner 3% | Scavenger-Skirmisher 3% | Gladiator Dominant Class ---------------- Mutant | -10/Materials Scavenger-Mutant | -9/Materials Mutant | -9/Mines Mutant | -7/Zion Mutant | -6/Proximity Caves Gunner | -6/Factory Gunner | -6/Extension Derelict-Gladiator | -6/Cetus Scavenger-Gladiator | -6/Archives Scavenger-Skirmisher | -6/Hub_04(d) Scavenger-Skirmisher | -5/Factory Scavenger-Gunner | -5/DSF Messiah-Mutant | -5/Garrison Scavenger-Mutant | -4/Factory Gladiator | -4/Armory Resources | -11 -10 -9 -9 -7 -6 -6 -6 -6 -6 -6 -5 -5 -5 -4 -4 ----------- Run | Yrd Mat Mat Min Zio Pro Fac Ext Cet Arc Hub Fac DSF Gar Fac Arm Matter Collected 3349 | 297 372 42 . 208 4 272 459 244 46 392 . 375 245 243 150 Remotely . | . . . . . . . . . . . . . . . . Salvage Created 5672 | 144 749 299 . . 25 846 569 249 36 340 . 508 1049 636 222 Parts 275 | 10 52 21 . . 4 41 17 8 6 17 . 14 45 22 18 Haulers Intercepted 6 | . 2 2 . . . 1 . . . 1 . . . . . Recyclers Shooed . | . . . . . . . . . . . . . . . . Parts Field Recycled . | . . . . . . . . . . . . . . . . Retrieved Matter . | . . . . . . . . . . . . . . . . Parts Self-Destructed 2 | . . . . 1 1 . . . . . . . . . . Prevented . | . . . . . . . . . . . . . . . . Kills | -11 -10 -9 -9 -7 -6 -6 -6 -6 -6 -6 -5 -5 -5 -4 -4 ------- Run | Yrd Mat Mat Min Zio Pro Fac Ext Cet Arc Hub Fac DSF Gar Fac Arm Combat Hostiles Destroyed 87 | . 17 4 . . 4 10 11 3 . 1 . 10 19 5 3 Melee 32 | . . . . . . . 2 3 . . . . 19 5 3 Guns 41 | . 17 3 . . . 10 8 . . 1 . 2 . . . Cannons 5 | . . . . . . . . . . . . 5 . . . AOE 8 | . . 1 . . 4 . . . . . . 3 . . . Classes Destroyed 18 | 2 4 1 . . . 3 1 . 1 1 . 3 1 1 . Worker 1 | . . . . . . . . . . 1 . . . . . Builder 2 | . . . . . . 2 . . . . . . . . . Tunneler 4 | 3 . . . . . 1 . . . . . . . . . Hauler 6 | . 2 2 . . . 1 . . . 1 . . . . . Recycler 4 | 1 1 . . . . . . . . . . . . 2 . Operator 1 | . . . . . . . . . 1 . . . . . . Watcher 12 | . 2 . . . . 2 1 1 . 2 . . . 3 1 Swarmer 23 | . 5 . . . 4 . 4 . . . . 5 5 . . Grunt 36 | . 12 3 . . . 7 1 . . . . . 12 1 . Brawler 1 | . . . . . . . . . . . . . . 1 . Duelist 1 | . . . . . . . . . . . . . 1 . . Sentry 9 | . . 1 . . . 1 5 . . 1 . . . 1 . Specialist 2 | . . . . . . . . . . . . 2 . . . Hunter 3 | . . . . . . . . . . . . 2 . . 1 Programmer 6 | . . . . . . 2 . . . . . . . 2 2 Heavy 1 | . . . . . . . . . . . . 1 . . . Behemoth 1 | . . . . . . . . . . . . . 1 . . Cetus Guard 3 | . . . . . . . . 3 . . . . . . . Enhanced Grunt 1 | . . . . . . . . . . 1 . . . . . Butcher 1 | . . . . . . . 1 . . . . . . . . Mutant 1 | . . . . . . 1 . . . . . . . . . Best Kill Streak 8 | 4 4 3 . . 4 8 4 2 1 2 . 7 5 2 1 Combat Bots Only 7 | . 3 3 . . 4 6 4 2 . 1 . 7 5 2 1 Max Kills in Single Turn 4 | 1 1 1 . . 4 3 2 1 1 1 . 4 1 1 1 Gunslinging . | . . . . . . . . . . . . . . . . Exploded 4 | . . 1 . . 4 . . . . . . 3 . . . Melee 1 | . . . . . . . 1 1 . . . . 1 1 1 Uniques/NPCs Destroyed . | . . . . . . . . . . . . . . . . Combat | -11 -10 -9 -9 -7 -6 -6 -6 -6 -6 -6 -5 -5 -5 -4 -4 -------- Run | Yrd Mat Mat Min Zio Pro Fac Ext Cet Arc Hub Fac DSF Gar Fac Arm Hostile Shots Fired 880 | . 59 20 . . 7 25 107 57 22 39 . 61 222 185 76 Missed 267 | . 21 5 . . 4 8 38 15 6 13 . 12 56 62 27 Hits 613 | . 38 15 . . 3 17 69 42 16 26 . 49 166 123 49 Melee 3 | . . . . . . . . . . . . . 1 2 . Projectile 610 | . 38 15 . . 3 17 69 42 16 26 . 49 165 121 49 Critical Strikes 30 | . . . . . . 1 2 5 2 . . 3 9 6 2 Damage Taken 11153 | . 412 214 . . 45 489 886 911 393 492 . 838 2669 2895 909 Core 2192 | . 99 29 . . . 51 33 92 71 88 . 100 474 978 177 Absorbed by Shields 276 | . . . . . . . 90 166 . . . 20 . . . Redirected to Shielding 236 | . . . . . . . . . . . . . 90 146 . Ignored by Resistances 623 | . . . . . . . . . . . . . 600 23 . Regen/Repaired (Parts) 534 | . . . . . . . . . . . . . . 534 . Core Remaining (%) 70 | 100 60 . . . 92 . . . . 60 . . 42 . . Volleys Fired 154 | 7 53 16 . . 1 18 25 . . 16 . 17 . 1 . Largest 4 | 2 2 2 . . 1 1 1 . . 4 . 4 . 1 . Hottest 250 | 70 70 95 . . . 250 250 . . 189 . 204 . . . Shots Fired 308 | 14 101 32 . . 1 20 26 . . 48 . 65 . 1 . Gun 252 | 14 101 32 . . . 20 15 . . 41 . 29 . . . Cannon 52 | . . . . . . . 11 . . 7 . 34 . . . Launcher . | . . . . . . . . . . . . . . . . Special 4 | . . . . . 1 . . . . . . 2 . 1 . Kinetic 161 | 7 52 15 . . . . . . . 41 . 46 . . . Thermal 127 | 7 49 1 . . . 20 26 . . 7 . 17 . . . Explosive 4 | . . . . . 1 . . . . . . 2 . 1 . Electromagnetic 16 | . . 16 . . . . . . . . . . . . . Robot Hit Streak 14 | 3 14 7 . . 7 8 9 . . 11 . 7 . . . Robot Miss Streak 19 | 1 4 3 . . . 19 10 . . 3 . 5 . . . Penetration Max 1 | . . . . . . . . . . . . 1 . . . Secondary Targets 2 | . 2 . . . . . . . . . . . . . . Max Gunslinging Chain 1 | . 1 . . . . . . . . . . . . . . Shots Hit Robots 288 | 7 63 27 . . 1 18 17 14 1 31 . 27 49 27 6 Core Hits 194 | 6 39 12 . . 4 34 25 6 1 12 . 15 22 13 5 Critical Kills 1 | . . . . . . . . . . 1 . . . . . Critical Parts Destroyed 4 | . 1 1 . . . . 1 . . 1 . . . . . Critical Strikes 22 | 1 6 1 . . . . 1 . . 2 . 1 7 3 . Burn 6 | 1 5 . . . . . . . . . . . . . . Destroy 3 | . 1 1 . . . . . . . 1 . . . . . Blast 1 | . . . . . . . . . . . . 1 . . . Smash 2 | . . . . . . . 1 . . 1 . . . . . Sever 10 | . . . . . . . . . . . . . 7 3 . Melee Attacks 181 | . . . . . . 1 11 31 2 9 . . 73 40 14 Impact 16 | . . . . . . 1 4 8 1 2 . . . . . Slashing 165 | . . . . . . . 7 23 1 7 . . 73 40 14 Piercing . | . . . . . . . . . . . . . . . . Sneak Attacks 3 | . . . . . . . 1 . 1 . . . . 1 . Combat Hostiles . | . . . . . . . . . . . . . . . . Follow-up Attacks 42 | . . . . . . . 3 4 . 2 . . 21 11 1 Damage Inflicted 12779 | 80 720 409 . . 493 1630 1201 546 87 1023 . 1788 2742 1706 354 Guns 4520 | 80 720 368 . . . 1419 997 . . 510 . 426 . . . Cannons 668 | . . . . . . . . . . 37 . 631 . . . Explosions 1779 | . . 41 . . 462 211 . . . 161 . 698 . 206 . Melee 5748 | . . . . . . . 204 546 87 315 . . 2742 1500 354 Ramming . | . . . . . . . . . . . . . . . . Kinetic 1733 | 42 299 161 . . . . . . . 510 . 721 . . . Thermal 3625 | 38 421 54 . . . 1630 997 . . 37 . 336 . 112 . Explosive 1254 | . . . . . 462 . . . . . . 698 . 94 . Electromagnetic 355 | . . 194 . . . . . . . 161 . . . . . Impact 282 | . . . . . . . 84 106 . 92 . . . . . Slashing 5530 | . . . . . 31 . 120 440 87 223 . 33 2742 1500 354 Piercing . | . . . . . . . . . . . . . . . . Highest Corruption 19 | . 4 . . . . 6 7 7 7 19 . . . 7 8 Average Corruption 6 | . 3 . . . . 5 6 7 7 14 . . . 2 7 Corruption Purged . | . . . . . . . . . . . . . . . . Corruption Blocked . | . . . . . . . . . . . . . . . . Effects 126 | . 2 . . . . 24 35 22 6 22 . . . 6 9 Message Errors 30 | . 1 . . . . 7 7 7 3 3 . . . 1 1 Matter Fused 36 | . 1 . . . . 6 12 6 1 7 . . . 1 2 Heat Flow Errors 11 | . . . . . . 1 5 1 . 2 . . . 2 . Energy Discharges 15 | . . . . . . 2 5 3 . 1 . . . 2 2 Data Loss (minor) 19 | . . . . . . 3 3 3 2 4 . . . . 4 Data Loss (major) 6 | . . . . . . 3 2 . . 1 . . . . . Misfires 4 | . . . . . . 2 1 . . 1 . . . . . Alerts 4 | . . . . . . . . 2 . 2 . . . . . Weapon Failures 1 | . . . . . . . . . . 1 . . . . . Overload Shots . | . . . . . . . . . . . . . . . . Overflow Damage 477 | . . . . . 18 165 44 . . 2 . 106 106 36 . Projectiles 42 | . . . . . 6 . . . . 2 . 34 . . . Explosions 250 | . . . . . 12 165 . . . . . 72 . 1 . Melee 185 | . . . . . . . 44 . . . . . 106 35 . Knockbacks 5 | . . . . . . . . . . 2 . 3 . . . Impact 1 | . . . . . . . . . . 1 . . . . . Kinetic 3 | . . . . . . . . . . . . 3 . . . Secondary 1 | . . . . . . . . . . 1 . . . . . Self-Inflicted Damage 293 | . . 39 . . . 145 . . . 109 . . . . . Shots 4 | . . 1 . . . 2 . . . 1 . . . . . Rammed . | . . . . . . . . . . . . . . . . Targets Rammed . | . . . . . . . . . . . . . . . . Kicked . | . . . . . . . . . . . . . . . . Crushed . | . . . . . . . . . . . . . . . . Highest Temperature 717 | 60 90 84 . . . 376 282 110 . 348 . 717 209 193 . Average Temperature 95 | 26 30 45 . . . 130 73 36 . 121 . 181 129 83 . Received Heat Transfer 2983 | . 192 87 . . . 45 162 76 72 57 . 126 1602 564 . Effects 18 | . . . . . . 4 . . . 3 . 8 3 . . Shutdowns 3 | . . . . . . 1 . . . . . 2 . . . Energy Bleed 1 | . . . . . . . . . . . . 1 . . . Interference 9 | . . . . . . 3 . . . 3 . . 3 . . Matter Decay 2 | . . . . . . . . . . . . 2 . . . Damage (minor) 1 | . . . . . . . . . . . . 1 . . . Damage (major) 2 | . . . . . . . . . . . . 2 . . . Siege Activations . | . . . . . . . . . . . . . . . . Martial Activations . | . . . . . . . . . . . . . . . . Shielding Activations . | . . . . . . . . . . . . . . . . Robots Disrupted . | . . . . . . . . . . . . . . . . Combat Hostiles . | . . . . . . . . . . . . . . . . Robots Corrupted 1 | . . . . . . . 1 . . . . . . . . Combat Hostiles 1 | . . . . . . . 1 . . . . . . . . Parts Fried 2 | . . 1 . . . . . 1 . . . . . . . Impact Corruptions 2 | . . . . . . . 2 . . . . . . . . Robots Melted . | . . . . . . . . . . . . . . . . Combat Hostiles . | . . . . . . . . . . . . . . . . Parts Melted 15 | 1 2 . . . . 5 5 . . . . 1 1 . . Heat Transferred 5650 | 185 1628 87 . . . 1925 1275 . . . . 500 . 50 . Parts Sabotaged . | . . . . . . . . . . . . . . . . Parts Stolen . | . . . . . . . . . . . . . . . . Parts Stripped . | . . . . . . . . . . . . . . . . Power Chain Reactions 1 | . . 1 . . . . . . . . . . . . . Alert | -11 -10 -9 -9 -7 -6 -6 -6 -6 -6 -6 -5 -5 -5 -4 -4 ------- Run | Yrd Mat Mat Min Zio Pro Fac Ext Cet Arc Hub Fac DSF Gar Fac Arm Maximum Alert Level 3 | . 1 . . . . 1 1 . . 1 . 1 3 3 1 Low Security (%) 60 | 100 64 100 100 . . 97 63 100 100 82 100 64 . . 28 Level 1 25 | . 35 . . . . 2 36 . . 17 . 36 25 39 71 Level 2 9 | . . . . . . . . . . . . . 67 32 . Level 3 5 | . . . . . . . . . . . . . 7 28 . Level 4 . | . . . . . . . . . . . . . . . . Level 5 . | . . . . . . . . . . . . . . . . High Security . | . . . . . . . . . . . . . . . . Max Security . | . . . . . . . . . . . . . . . . Sterilizations 1 | . . . . . . . . . . . . 1 . . . Peak Influence 849 | 10 235 99 30 . . 207 363 198 169 276 127 309 791 849 308 Initial 415 | . . 92 30 . . 41 86 176 63 19 127 60 231 415 308 Average 216 | 2 141 60 8 . . 42 159 139 110 148 107 181 521 521 230 Influence Increases 5140 | 20 523 167 . . 108 439 743 424 164 470 . 339 690 946 107 Destroy 0b10 Robot/C 2580 | . 340 80 . . 80 220 440 240 80 160 . 220 420 240 60 Destroy 0b10 Robot/NC 160 | 20 25 10 . . . 30 10 10 5 20 . . . 25 5 Destroy Leader 446 | . 78 24 . . 10 56 54 20 . 56 . 30 50 56 12 Allied During Kill 695 | . . . . . 18 57 157 128 63 104 . 26 30 112 . Successful Hack 33 | . 5 20 . . . . . 8 . . . . . . . Select Force Hacks 30 | . 30 . . . . . . . . . . . . . . Disable Machine 420 | . . 15 . . . 60 60 15 15 45 . 15 . 165 30 Anti-Garrison Action 200 | . . . . . . . . . . . . . . 200 . Destroy Structure 321 | . . 3 . . . 16 7 3 1 85 . 48 10 148 . Lose Combat Pursuer 255 | . 45 15 . . . . 15 . . . . . 180 . . Influence Decreases 4951 | 20 304 307 79 . 42 328 604 582 265 267 173 117 208 1106 549 Entered New Map 1502 | . . 127 49 . . 25 91 140 95 38 133 27 78 376 323 Time Decay 2528 | 20 294 170 30 . 42 233 392 262 140 229 40 . . 470 206 Lost Part 461 | . 10 10 . . . 10 21 40 30 . . 10 130 180 20 Lost Ally 460 | . . . . . . 60 100 140 . . . 80 . 80 . Squads Dispatched 21 | . 4 2 . . . 3 1 2 . 2 . 1 . 5 1 Investigation 6 | . 2 1 . . . . . 2 . . . . . 1 . Extermination 6 | . . . . . . 2 . . . 1 . . . 2 1 Reinforcement 8 | . 2 1 . . . 1 1 . . 1 . 1 . 1 . Assault 1 | . . . . . . . . . . . . . . 1 . Garrison . | . . . . . . . . . . . . . . . . Intercept . | . . . . . . . . . . . . . . . . Searches Triggered . | . . . . . . . . . . . . . . . . Construction Impeded 1 | . . 1 . . . . . . . . . . . . . Haulers Reinforced 2 | . . . . . . 1 . . . 1 . . . . . Active Scanning Responses . | . . . . . . . . . . . . . . . . Cargo Convoy Interrupts . | . . . . . . . . . . . . . . . . Stealth | -11 -10 -9 -9 -7 -6 -6 -6 -6 -6 -6 -5 -5 -5 -4 -4 --------- Run | Yrd Mat Mat Min Zio Pro Fac Ext Cet Arc Hub Fac DSF Gar Fac Arm Distress Signals 6 | . . . . . . 1 1 2 . 1 . . . 1 . Communications Jammed . | . . . . . . . . . . . . . . . . Distress Signals . | . . . . . . . . . . . . . . . . Times Spotted 182 | . 23 8 . . 4 19 27 14 4 12 . 11 29 25 6 Peak Tracking Total 10 | . 3 4 . . 4 4 6 5 2 3 . 7 8 10 3 Tactical Retreats 12 | . 3 1 . . . . 1 . . . . . 7 . . Traps | -11 -10 -9 -9 -7 -6 -6 -6 -6 -6 -6 -5 -5 -5 -4 -4 ------- Run | Yrd Mat Mat Min Zio Pro Fac Ext Cet Arc Hub Fac DSF Gar Fac Arm Traps Triggered 11 | . 2 . . . . 1 4 . . . . 2 2 . . Indirectly . | . . . . . . . . . . . . . . . . Trap Hack Attempts . | . . . . . . . . . . . . . . . . Triggered . | . . . . . . . . . . . . . . . . Disarmed . | . . . . . . . . . . . . . . . . Reprogrammed . | . . . . . . . . . . . . . . . . Reused . | . . . . . . . . . . . . . . . . Traps Extracted . | . . . . . . . . . . . . . . . . Installed . | . . . . . . . . . . . . . . . . Triggered . | . . . . . . . . . . . . . . . . Machines | -11 -10 -9 -9 -7 -6 -6 -6 -6 -6 -6 -5 -5 -5 -4 -4 ---------- Run | Yrd Mat Mat Min Zio Pro Fac Ext Cet Arc Hub Fac DSF Gar Fac Arm Machines Disabled 29 | . . 1 . . . 4 4 2 1 3 . 1 . 11 2 Max in Single Turn 5 | . . 1 . . . 3 1 1 . 2 . 1 . 5 1 Garrison Access 2 | . . . . . . . . . . . 1 . . 1 . Network Hub 1 | . . . . . . . . . . 1 . . . . . Machines Repaired . | . . . . . . . . . . . . . . . . Machines Dismantled . | . . . . . . . . . . . . . . . . Machines Sabotaged . | . . . . . . . . . . . . . . . . Overloaded Fab Kills . | . . . . . . . . . . . . . . . . Hacking | -11 -10 -9 -9 -7 -6 -6 -6 -6 -6 -6 -5 -5 -5 -4 -4 --------- Run | Yrd Mat Mat Min Zio Pro Fac Ext Cet Arc Hub Fac DSF Gar Fac Arm Machines Accessed 16 | . 4 2 . . . 1 2 2 . . 2 . . 3 . Terminals 9 | . 3 2 . . . 1 . 2 . . 1 . . . . Fabricators . | . . . . . . . . . . . . . . . . Repair Stations 1 | . . . . . . . . . . . . . . 1 . Recycling Units 4 | . 1 . . . . . 2 . . . . . . 1 . Scanalyzers . | . . . . . . . . . . . . . . . . Garrison Access 2 | . . . . . . . . . . . 1 . . 1 . Total Hacks 40 | . 9 8 . . . 1 3 8 . . 2 . . 9 . Successful 18 | . 3 5 . . . 1 1 1 . . 2 . . 5 . Failed 22 | . 6 3 . . . . 2 7 . . . . . 4 . Catastrophic 6 | . 1 . . . . . . 3 . . . . . 2 . Database Lockouts . | . . . . . . . . . . . . . . . . Manual 50 | . 9 7 . . . 11 8 1 . 7 . . 4 3 . Terminals 26 | . 8 8 . . . 1 . 8 . . 1 . . . . Fabricators . | . . . . . . . . . . . . . . . . Repair Stations 5 | . . . . . . . . . . . . . . 5 . Recycling Units 5 | . 1 . . . . . 3 . . . . . . 1 . Scanalyzers . | . . . . . . . . . . . . . . . . Garrison Access 4 | . . . . . . . . . . . 1 . . 3 . Terminal Hacks 6 | . . 3 . . . 1 . 1 . . 1 . . . . Record 1 | . . . . . . . . 1 . . . . . . . Open Door 1 | . . . . . . 1 . . . . . . . . . Open DSF 1 | . . . . . . . . . . . 1 . . . . Terminal Index 1 | . . 1 . . . . . . . . . . . . . Zone Layout 2 | . . 2 . . . . . . . . . . . . . Fabricator Hacks . | . . . . . . . . . . . . . . . . Repair Station Hacks 4 | . . . . . . . . . . . . . . 4 . Scan Component 2 | . . . . . . . . . . . . . . 2 . Repair 2 | . . . . . . . . . . . . . . 2 . Recycling Unit Hacks 1 | . . . . . . . 1 . . . . . . . . Retrieve Components 1 | . . . . . . . 1 . . . . . . . . Scanalyzer . | . . . . . . . . . . . . . . . . Garrison Access Hacks 1 | . . . . . . . . . . . 1 . . . . Seal Access 1 | . . . . . . . . . . . 1 . . . . Unauthorized Hacks 6 | . 3 2 . . . . . . . . . . . 1 . Terminals 4 | . 2 2 . . . . . . . . . . . . . Botnet 4 | . 2 2 . . . . . . . . . . . . . Fabricators . | . . . . . . . . . . . . . . . . Repair Stations . | . . . . . . . . . . . . . . . . Recycling Units 1 | . 1 . . . . . . . . . . . . . . Tunnel 1 | . 1 . . . . . . . . . . . . . . Scanalyzers . | . . . . . . . . . . . . . . . . Garrison Access 1 | . . . . . . . . . . . . . . 1 . Jam 1 | . . . . . . . . . . . . . . 1 . Data Cores Recovered . | . . . . . . . . . . . . . . . . Used . | . . . . . . . . . . . . . . . . Hacking Detections 11 | . 3 2 . . . . 1 3 . . . . . 2 . Full Trace Events 3 | . 1 . . . . . . 2 . . . . . . . Feedback Events . | . . . . . . . . . . . . . . . . Feedback Blocked . | . . . . . . . . . . . . . . . . Robot Schematics Acquired 2 | . . . . 2 . . . . . . . . . . . Robots Built . | . . . . . . . . . . . . . . . . Authchips . | . . . . . . . . . . . . . . . . Time . | . . . . . . . . . . . . . . . . Total Robot Build Rating . | . . . . . . . . . . . . . . . . Part Schematics Acquired 15 | . . . . 15 . . . . . . . . . . . Parts Built . | . . . . . . . . . . . . . . . . Authchips . | . . . . . . . . . . . . . . . . Time . | . . . . . . . . . . . . . . . . Total Part Build Rating . | . . . . . . . . . . . . . . . . Parts Repaired 2 | . . . . . . . . . . . . . . 2 . Time 64 | . . . . . . . . . . . . . . 64 . Parts Recycled . | . . . . . . . . . . . . . . . . Recycled Matter . | . . . . . . . . . . . . . . . . Retrieved Matter . | . . . . . . . . . . . . . . . . Retrieved Components 9 | . . . . . . . 9 . . . . . . . . Parts Scanalyzed . | . . . . . . . . . . . . . . . . Part Schematics Acquired . | . . . . . . . . . . . . . . . . Parts Damaged . | . . . . . . . . . . . . . . . . Bothacking | -11 -10 -9 -9 -7 -6 -6 -6 -6 -6 -6 -5 -5 -5 -4 -4 ------------ Run | Yrd Mat Mat Min Zio Pro Fac Ext Cet Arc Hub Fac DSF Gar Fac Arm Used RIF Installer . | . . . . . . . . . . . . . . . . Robots Hacked . | . . . . . . . . . . . . . . . . Non-combat . | . . . . . . . . . . . . . . . . Combat . | . . . . . . . . . . . . . . . . Robot Hacks Applied . | . . . . . . . . . . . . . . . . Relay Couplers Released . | . . . . . . . . . . . . . . . . Fabnet Peak Effective % . | . . . . . . . . . . . . . . . . Robots Rewired . | . . . . . . . . . . . . . . . . Allies Hacked 1 | . . . . . . 1 . . . . . . . . . Hacks Repelled . | . . . . . . . . . . . . . . . . Allies | -11 -10 -9 -9 -7 -6 -6 -6 -6 -6 -6 -5 -5 -5 -4 -4 -------- Run | Yrd Mat Mat Min Zio Pro Fac Ext Cet Arc Hub Fac DSF Gar Fac Arm Total Allies 27 | . . . . 4 . . 11 5 . 3 . . 2 2 . Largest Group 6 | . . . . 4 4 4 6 6 4 4 4 4 2 3 . Highest-Rated Group 639 | . . . . 151 151 151 413 639 426 306 262 262 192 302 . Highest-Rated Ally 159 | . . . . 39 39 39 159 159 138 96 96 96 96 103 . Zionite Dispatches 5 | . . . . . . . 2 . . 2 . . . 1 . Heavy 2 | . . . . . . . 1 . . . . . . 1 . Light 1 | . . . . . . . . . . 1 . . . . . Recon 1 | . . . . . . . . . . 1 . . . . . Fire 1 | . . . . . . . 1 . . . . . . . . Total Orders 6 | . . . . . . . 5 1 . . . . . . . RETURN 6 | . . . . . . . 5 1 . . . . . . . Ally Attacks 251 | . . . . . . 20 44 59 17 46 . 23 4 38 . Total Damage 8228 | . . . . . . 346 1530 2178 659 1226 . 496 211 1582 . Kills 44 | . . . . . . 1 12 10 4 7 . 1 2 7 . Allies Corrupted . | . . . . . . . . . . . . . . . . Allies Melted 1 | . . . . . . . . . . . . . . 1 . Intel | -11 -10 -9 -9 -7 -6 -6 -6 -6 -6 -6 -5 -5 -5 -4 -4 ------- Run | Yrd Mat Mat Min Zio Pro Fac Ext Cet Arc Hub Fac DSF Gar Fac Arm Active Infowar (turns) 5552 | 17 748 357 136 1084 464 787 . . . 371 96 350 4 1138 . Sensors 4352 | . . . 60 1084 464 787 . . . 371 96 350 2 1138 . A.S.S. 2 | . . . . . . . . . . . . . 2 . . Seismic 1198 | 17 748 357 76 . . . . . . . . . . . . Robot Analysis Total . | . . . . . . . . . . . . . . . . Derelict Logs Recovered 2 | . . . 1 1 . . . . . . . . . . . Drone Launches 7 | . . . . . . . 5 1 1 . . . . . . Drone Recoveries 7 | . . . . . . . 5 1 1 . . . . . . Zionite Intel Received 4 | . . . . . . 3 . . . 1 . . . . . Main Access 1 | . . . . . . . . . . 1 . . . . . Branch Access 1 | . . . . . . 1 . . . . . . . . . Prototype Stockpiles 1 | . . . . . . 1 . . . . . . . . . Unaware Analyses 1 | . . . . . . 1 . . . . . . . . . Exploration | -11 -10 -9 -9 -7 -6 -6 -6 -6 -6 -6 -5 -5 -5 -4 -4 ------------- Run | Yrd Mat Mat Min Zio Pro Fac Ext Cet Arc Hub Fac DSF Gar Fac Arm Turns Passed 9014 | 88 748 357 137 1084 464 978 1221 575 281 486 97 350 525 1190 433 Spaces Moved 5456 | 56 434 148 104 837 353 645 663 353 209 230 75 209 249 673 218 Core 60 | 27 . . . . . . . . . . . . . 7 26 Treads . | . . . . . . . . . . . . . . . . Legs 2020 | . . . . . . . 115 79 209 230 75 209 249 665 189 Wheels 3373 | 29 434 148 104 837 353 645 548 274 . . . . . 1 . Hover . | . . . . . . . . . . . . . . . . Flight 3 | . . . . . . . . . . . . . . . 3 Fastest Speed 31 | 50 80 105 120 110 120 108 116 110 120 120 120 120 120 80 31 Average Speed 128 | 79 108 118 120 119 120 120 147 132 120 164 120 120 127 138 163 Slowest Speed 290 | 100 110 120 120 125 120 130 196 260 190 190 120 120 260 190 290 Overloaded Moves . | . . . . . . . . . . . . . . . . Propulsion Burnouts . | . . . . . . . . . . . . . . . . Robots Hopped . | . . . . . . . . . . . . . . . . Potential Cave-ins 7 | . . . . . . . 7 . . . . . . . . Cave-ins Triggered 1 | . . . . . . . 1 . . . . . . . . Exploration Rate (%) 46 | 4 85 19 37 88 56 21 63 94 97 22 2 91 27 21 15 Regions Visited 15 Branch Regions 8 Pre-discovered Areas 4 | . 1 . 1 2 . . . . . . . . . . . Known Exits Taken 6 | . . . . . . 1 1 1 1 1 1 . . . . Unknown Exits Taken 7 | 1 1 1 1 1 1 . . . . . . . . 1 . Scrap Searched 5 | . . . . 4 1 . . . . . . . . . . Spaces Dug 13 | . . . . . . . 11 . . . . . . 2 . Terrain Destroyed 288 | . . 2 . . 5 14 11 . . 168 . 44 . 44 . Melee 2 | . . . . . . . . . . . . . . 2 . Projectile 28 | . . . . . . . 11 . . 10 . 7 . . . AOE 258 | . . 2 . . 5 14 . . . 158 . 37 . 42 . Terrain Rammed . | . . . . . . . . . . . . . . . . Walls Destroyed . | . . . . . . . . . . . . . . . . Machines Disabled . | . . . . . . . . . . . . . . . . Actions | -11 -10 -9 -9 -7 -6 -6 -6 -6 -6 -6 -5 -5 -5 -4 -4 --------- Run | Yrd Mat Mat Min Zio Pro Fac Ext Cet Arc Hub Fac DSF Gar Fac Arm Total 6952 | 83 628 298 115 928 392 799 844 441 236 295 83 270 375 890 275 Wait 637 | . 96 115 6 45 35 66 56 24 16 3 . 6 32 115 22 Move 5440 | 55 433 147 103 836 352 644 661 352 208 229 74 208 248 672 218 Hop . | . . . . . . . . . . . . . . . . Pick Up 169 | 12 20 7 1 17 1 17 11 10 2 9 4 12 14 28 4 Fast Attach 51 | 3 . . 1 1 . 10 4 6 3 3 . . 1 7 12 Attach 62 | 4 2 2 1 . . 7 10 4 2 4 3 1 14 7 1 Detach 14 | . . . . . . 5 2 1 1 1 . . 3 . 1 Swap 111 | 2 9 6 2 8 2 9 23 9 2 9 . 10 5 14 1 Drop 150 | . 15 5 1 21 1 22 14 14 1 14 2 13 2 19 6 Fire 154 | 7 53 16 . . 1 18 25 . . 16 . 17 . 1 . Melee 122 | . . . . . . 1 5 21 1 7 . . 50 27 10 Ram . | . . . . . . . . . . . . . . . . Kick . | . . . . . . . . . . . . . . . . Crush . | . . . . . . . . . . . . . . . . Escape Stasis 42 | . . . . . . . 33 . . . . 3 6 . . Rewire . | . . . . . . . . . . . . . . . . Trap . | . . . . . . . . . . . . . . . . Miscellaneous . | . . . . . . . . . . . . . . . . Route ------- -11/Scrapyard -10/Materials (discovered 4 exits: *Mat x2 / [*Min] / [*Sub]) -9/Materials -9/Mines -7/Zion -6/Proximity Caves -6/Factory (discovered 4 exits: *Low x2 / *Ext x2) -6/Extension (discovered 2 exits: *Fac / *Cet) -6/Cetus (discovered 3 exits: *Fac x2 / *Arc) -6/Archives (discovered 3 exits: *Fac / *Hub x2) -6/Hub_04(d) (discovered 4 exits: *Fac x4) -5/Factory -5/DSF -5/Garrison -4/Factory (discovered 2 exits: *Upp / [*Arm]) -4/Armory History --------- Turn | Location | Event 12 | -11/Scrapyard | Discovered new exit (range 16) 89 | -11/Scrapyard | Entered Materials 314 | -10/Materials | Build established: Mutant 320 | -10/Materials | Discovered new exit (range 8) 512 | -10/Materials | Discovered new exit (range 16) 765 | -10/Materials | Discovered new exit (range 8) 795 | -10/Materials | Discovered new exit (range 14) 837 | -10/Materials | Entered another Materials area 837 | -9/Materials | Evolved 2 slots: Utility x2 1186 | -9/Materials | Discovered new exit (range 4) 1194 | -9/Materials | Entered Mines 1225 | -9/Mines | Received a Rocket Launcher from a helpful Derelict 1268 | -9/Mines | Found a damaged Exp. Sensor Array with a note attached 1271 | -9/Mines | Found Prototype Device 1271 | -9/Mines | Identified Exp. Sensor Array 1312 | -9/Mines | A Derelict revealed a hidden shortcut to a safe place 1331 | -9/Mines | Entered Zion 1351 | -7/Zion | Given the Hacking Drone Bay 1351 | -7/Zion | Found Prototype Device 1410 | -7/Zion | Discovered new exit (range 12) 1411 | -7/Zion | Given A8's code to call for help 1505 | -7/Zion | Identified Hacking Drone Bay 1618 | -7/Zion | Learned location of Quarantine (-2) 1622 | -7/Zion | Learned Factory non-interactive machine intel 1718 | -7/Zion | Found Prototype Special Weapon 1719 | -7/Zion | Identified RU-N14's Throwing Claymores 1723 | -7/Zion | Found RU-N14's Throwing Claymores 1758 | -7/Zion | Learned location of Warlord (-5) 1828 | -7/Zion | Found Prototype Energy Gun 1984 | -7/Zion | Met Imprinter 2007 | -7/Zion | Imprinted 2009 | -7/Zion | Declared Zion's savior 2415 | -7/Zion | Entered Proximity Caves 2415 | -6/Proximity Caves | Accompanied by 4 allies 2832 | -6/Proximity Caves | Discovered new exit (range 16) 2879 | -6/Proximity Caves | Entered Factory 2879 | -6/Factory | Accompanied by 4 allies 2879 | -6/Factory | Evolved 6 slots: Power x1, Propulsion x1, Utility x2, Weapon x2 2880 | -6/Factory | Loaded intel: 197 non-interactive machine locations 2912 | -6/Factory | Identified Storm Laser 3231 | -6/Factory | Retrieved Zion intel report: Prototype Stockpiles 3287 | -6/Factory | Build established: Gunner 3332 | -6/Factory | Retrieved Zion intel report: Branch Access 3332 | -6/Factory | Identified exit to Lower Caves 3332 | -6/Factory | Identified exit to Extension 3498 | -6/Factory | Retrieved Zion intel report: Unaware Analyses 3705 | -6/Factory | Lost 4 allies 3803 | -6/Factory | Spotted B-75 Beast 3857 | -6/Factory | Entered Extension 3868 | -6/Extension | Disrupted transfer network 4017 | -6/Extension | Rescued a captive Derelict 4102 | -6/Extension | Rescued a captive Derelict 4207 | -6/Extension | Rescued a captive Derelict 4250 | -6/Extension | Lost 3 allies 4393 | -6/Extension | Crushed by falling debris 4427 | -6/Extension | Zion Heavy squad teleported in 4458 | -6/Extension | Zion Fire squad teleported in 4493 | -6/Extension | Rescued A7 4656 | -6/Extension | Found Prototype Protection 4656 | -6/Extension | Identified Zio. Weapon Casing 4930 | -6/Extension | Build established: Derelict-Gladiator 4958 | -6/Extension | Rescued a captive Derelict 4961 | -6/Extension | Rescued a captive Derelict 5035 | -6/Extension | Discovered new exit (range 10) 5037 | -6/Extension | Discovered new exit (range 6) 5069 | -6/Extension | Identified exit to Factory 5076 | -6/Extension | Identified exit to Cetus 5078 | -6/Extension | Entered Cetus 5078 | -6/Cetus | Accompanied by 6 allies (A7) 5083 | -6/Cetus | Acquired a Cetus Manufacturing Module code from A7 5104 | -6/Cetus | Spotted Cetus Guard 5104 | -6/Cetus | Spotted Cetus Guard 5108 | -6/Cetus | Spotted Cetus Guard 5108 | -6/Cetus | Spotted Cetus Guard 5114 | -6/Cetus | Allies destroyed Cetus Guard 5130 | -6/Cetus | Destroyed Cetus Guard 5131 | -6/Cetus | Allies destroyed Cetus Guard 5136 | -6/Cetus | Destroyed Cetus Guard 5149 | -6/Cetus | Lost 3 allies 5211 | -6/Cetus | Discovered exit to Factory (range 15) 5352 | -6/Cetus | Started Cetus Manufacturing Module 5377 | -6/Cetus | Manufactured an Enhanced Grunt 5398 | -6/Cetus | Escorted A7 to Cetus Mainframe 5402 | -6/Cetus | Manufactured an Enhanced Grunt 5427 | -6/Cetus | Manufactured an Enhanced Grunt 5452 | -6/Cetus | Manufactured an Enhanced Grunt 5477 | -6/Cetus | Manufactured an Enhanced Grunt 5490 | -6/Cetus | Discovered new exit (range 16) 5513 | -6/Cetus | Spotted Cetus Guard 5514 | -6/Cetus | Spotted Cetus Guard 5517 | -6/Cetus | Spotted Cetus Guard 5518 | -6/Cetus | Spotted Cetus Guard 5525 | -6/Cetus | Discovered exit to Factory (range 15) 5529 | -6/Cetus | Allies destroyed Cetus Guard 5536 | -6/Cetus | Destroyed Cetus Guard 5537 | -6/Cetus | Allies destroyed Cetus Guard 5543 | -6/Cetus | Allies destroyed Cetus Guard 5545 | -6/Cetus | Scared off Revision 17 5582 | -6/Cetus | Found Prototype Device 5582 | -6/Cetus | Identified Exp. Thermal Shield 5645 | -6/Cetus | Identified exit to Archives 5653 | -6/Cetus | Entered Archives 5653 | -6/Archives | Accompanied by 4 allies (A7) 5658 | -6/Archives | Received a hacking code to weaken MAIN.C 5696 | -6/Archives | Unable to access archive contents 5702 | -6/Archives | Discovered exit to Factory (range 15) 5712 | -6/Archives | Discovered new exit (range 14) 5730 | -6/Archives | Identified exit to Hub_04(d) 5735 | -6/Archives | Lost 3 parts (1p1u1w) 5796 | -6/Archives | Build established: Scavenger-Gladiator 5818 | -6/Archives | Discovered exit to Hub_04(d) (range 14) 5934 | -6/Archives | Entered Hub_04(d) 5934 | -6/Hub_04(d) | Accompanied by 3 allies 6087 | -6/Hub_04(d) | Network Hub disabled 6100 | -6/Hub_04(d) | System corruption reached 10% 6303 | -6/Hub_04(d) | Retrieved Zion intel report: Main Access 6304 | -6/Hub_04(d) | Zion Light squad teleported in 6396 | -6/Hub_04(d) | Zion Recon squad teleported in 6420 | -6/Hub_04(d) | Entered Factory 6420 | -5/Factory | Accompanied by 4 allies 6420 | -5/Factory | Evolved 2 slots: Propulsion x1, Utility x1 6517 | -5/Factory | Identified exit to DSF 6517 | -5/Factory | Entered DSF 6517 | -5/DSF | Accompanied by 4 allies 6550 | -5/DSF | Additional patrols routed to DSF 6590 | -5/DSF | Found Prototype Device 6701 | -5/DSF | Discovered new exit (range 15) 6759 | -5/DSF | Sterilization system engaged 6775 | -5/DSF | Destroyed 7 combat bots 6779 | -5/DSF | Ambient heat levels rising (+10) 6794 | -5/DSF | Ambient heat levels rising (+10) 6809 | -5/DSF | Ambient heat levels rising (+10) 6809 | -5/DSF | Identified exit to Garrison 6824 | -5/DSF | Ambient heat levels rising (+10) 6837 | -5/DSF | Build established: Scavenger-Gunner 6839 | -5/DSF | Ambient heat levels rising (+10) 6854 | -5/DSF | Ambient heat levels rising (+10) 6867 | -5/DSF | Entered Garrison 6873 | -5/Garrison | Identified Active Sensor Suite 6954 | -5/Garrison | Spotted B-75 Beast 6977 | -5/Garrison | Destroyed B-75 Beast 7095 | -5/Garrison | Triggered checkpoint 7161 | -5/Garrison | Lost 5 parts (2p2n1u) 7219 | -5/Garrison | Core integrity fell below 50% 7247 | -5/Garrison | Lost 7 parts (1p4n2u) 7306 | -5/Garrison | Discovered new exit (range 14) 7316 | -5/Garrison | Enhanced Grunt warped into view, answering call for help 7316 | -5/Garrison | Enhanced Grunt warped into view, answering call for help 7325 | -5/Garrison | Identified exit to Factory 7351 | -5/Garrison | Triggered checkpoint 7392 | -5/Garrison | Entered Factory 7392 | -4/Factory | Accompanied by 2 allies 7392 | -4/Factory | Evolved 2 slots: Utility x2 7435 | -4/Factory | Repaired Hcp. Storage Unit 7506 | -4/Factory | Repaired Carbon-fiber Leg 7547 | -4/Factory | Build established: Scavenger-Mutant 7982 | -4/Factory | Discovered new exit (range 6) 7992 | -4/Factory | Identified exit to Upper Caves 8207 | -4/Factory | Zion Heavy squad teleported in 8392 | -4/Factory | First assault squad dispatched 8537 | -4/Factory | Spotted B-86 Titan 8547 | -4/Factory | Discovered new exit (range 16) 8559 | -4/Factory | Found Zio. Weapon Casing 8571 | -4/Factory | Core integrity fell below 50% 8580 | -4/Factory | Core integrity fell below 20% 8582 | -4/Factory | Lost 3 allies 8582 | -4/Factory | Entered Armory 8610 | -4/Armory | Lost 17 parts (2p6n8u1w) 8696 | -4/Armory | Found Adv. Force Booster 9007 | -4/Armory | Build established: Gladiator 9015 | -4/Armory | Destroyed by H-77 Assassin with Coil Gun Last Messages --------------- 08979_ Slug penetrates Wall. 08993_ System corrupted: Component data lost. 08994_ Penetrated by Slug. 08994_ Slug penetrates Wall. 08997_ Penetrated by Slug. 09000_ Slug penetrates Wall. 09000_ Penetrated by Slug. 09003_ Nanosword follow-up attack on H-77 Assassin. 09003_ H-77 Assassin destroyed. 09004_ Acquired 56 matter. 09004_ Slug penetrates Wall. 09008_ Penetrated by Slug. 09008_ Imp. Light Armor Plating destroyed. 09008_ Penetrated by Slug. 09008_ Slug penetrates Wall. 09011_ Penetrated by Slug. 09012_ Destroyed Imp. Phase Shifter. 09013_ CB>UZ& /PEGAOUIV CBAZOC5Q3 09015_ Penetrated by Slug. Map ----- +----------------------------------------------------+ | ?????????????????????????????????????????????????? | | ?????????????????????????????????????????????????? | | ?????????????????????????????????????????????????? | | ?????????????????????????????????????????????????? | | ?????????????????????????????????????????????????? | | ?????????????????????????????????????????????????? | | ?????????????????????????????????????????????????? | | ?????????????????????????????????????????????????? | | ?????????????????????????????????????????????????? | | ?????????????????????????????????????????????????? | | ?????????????????????##############??????????????? | | ?????????????????????# #??????????????? | | ?????????????????????# #??????????????? | | ?????????????????????# #??????????????? | | ???????????########### #??????????????? | | ???????????# # #??????????????? | | ???????????# # """""" #??????????????? | | ???????????# # " !==" #?????????????## | | ???????????# [[[]]] # " ""=" #??????????????! | | ???????????# [[[]]] # " "??" #??????????????? | | ???????????# # " """" #?????????????#" | | ???????????? # #?????????????# | | ?????????????? ??# !* #?????????????# | | ???????#########+#########!####################### | | ?? p =%*[= | | ?? =[@=| | | ?????#####################h/##################+### | | ???????????????????# =%=[ #??????????# | | ???????????????????# != #??????????# | | ???????????????????# #??????????# | | ???????????????????# #??????????# | | ???????????????????# #??????????# | | ???????????????????# #?????############ | | ???????????????????# #?????# | | ???????????????????# #?????# !!! | | ???????????????????# """"""" #?????# ! ! | | ???????????????????# """"""" #?????# ! | | ???????????????????# #?????# !! ! | | ???????????????????# +?????# !!! | | ???????????????????###############????# | | ??????????????????????????????????????# | | ??????????????????????????????????????# | | ??????????????????????????????????????# | | ??????????????????????????????????????# | | ??????????????????????????????????????# | | ??????????????????????????????????################ | | ??????????????????????????????????? | | ????????????????????????????????????" """ | | ????????????????????????????????????" """ | | ????????????????????????????????????" """ | +----------------------------------------------------+ Best States ------------- Heat Dissipation 81 Energy Generation 46 Energy Capacity 690 Matter Stores 300 Matter Capacity 300 Sight Range 16 Robot Scan Range 20 Terrain Scan Density 10 Additional Mass Support 9 Armor Coverage 625 Resistance: TH 30 Resistance: EX 25 Propulsion Shielding 33 Weapon Shielding 100 Melee Speed Boost 20 Evasion (%) 55 Targeting Accuracy 8 Melee Accuracy 5 Target Analysis 6 Core Analysis 6 Particle Charging 20 Kinecelleration 40 Force Boost 40 Item Schematics ----------------- Hvy. Machine Gun | -7/Zion | Archive Hvy. Missile Launcher | -7/Zion | Archive Imp. Cooling System | -7/Zion | Archive Matter Compressor | -7/Zion | Archive Point Defense System | -7/Zion | Archive Med. Treads | -7/Zion | Archive Imp. Thermal Generator | -7/Zion | Archive Imp. Deuterium Engine | -7/Zion | Archive Thermal Shield | -7/Zion | Archive Remote Datajack | -7/Zion | Archive Adv. Sensor Array | -7/Zion | Archive Imp. Field Recycling Unit | -7/Zion | Archive Adv. Recoil Stabilizer | -7/Zion | Archive Gauss Cannon | -7/Zion | Archive Coil Gun | -7/Zion | Archive Robot Schematics ------------------ G-47 Trooper | -7/Zion | Archive W-25 Informer | -7/Zion | Archive Fabricated ------------ Nothing Repaired ---------- Hcp. Storage Unit | 14% | -4/Factory Carbon-fiber Leg | 1% | -4/Factory Alien Tech Used ----------------- None Achievements -------------- Main Advantage Ooh, Shiny! Challenges ------------ None Game ------ Seed FrostDirectedAnalyzer Manual? 0 Play Time 01:50:21 Cumulative 79.8 hours Start 2025.05.29 @ 00:18:27 End 2025.05.30 @ 15:42:01 Sessions 3 Manual Loads 0 Difficulty Rogue Special Mode None Game No. 56 Rogue 56 Adventurer 0 Explorer 0 Win Type - Total 0 Types 0/0/0/0/0/0/0/0/0/0 Lore% 55 Gallery% 45 Achievement% 40 Wizard Run 0 Options --------- Layout 1 ASCII 0 Keyboard 0 Movement Mouse Keybinds 0 Fullscreen 1 Font 24/Smallcaps Map View 50x35 Zoom Use 0% Tactical HUD 1 Map Filters NONE Filters NONE Steam 1 RUN: 83005f3e-0cb0-44e4-8fc9-081144beb8d3